bitfinex-derivatives/quotes_BTCF0:USTF0_20260119
["timestamp","ask_amount","ask_price","bid_price","bid_amount"]
[1768801259646,0.09042064,92736.0,92715.0,0.01095182]
[1768801260339,0.09716,92737.0,92708.0,1.5]
[1768801260340,0.09428774,92724.0,92708.0,1.5]
[1768801260542,0.09716,92737.0,92697.0,0.09712]
[1768801260543,0.09428774,92719.0,92697.0,0.09712]
[1768801260845,0.09428774,92719.0,92700.0,0.10784519]
[1768801261142,0.09428774,92719.0,92697.0,0.09712]
[1768801261545,0.09428774,92719.0,92698.0,0.10786555]
[1768801261746,0.09428774,92719.0,92703.0,0.010791]
[1768801263042,0.09428774,92719.0,92700.0,0.21794754]
[1768801263349,0.09428774,92719.0,92692.0,1.5]
[1768801263350,0.09428774,92719.0,92695.0,0.010792]
[1768801263543,0.09428774,92719.0,92697.0,0.010792]
[1768801264240,0.09428774,92716.0,92696.0,0.09712]
[1768801264545,0.09428774,92716.0,92709.0,0.00237303]
[1768801268158,0.00016182,92717.0,92709.0,0.00237303]
[1768801277259,0.00016182,92717.0,92709.0,0.0408488]
[1768801277660,0.00016182,92717.0,92710.0,0.010791]
[1768801278157,0.00016182,92717.0,92711.0,0.03847577]
[1768801278562,0.00016182,92717.0,92712.0,0.01079]
[1768801278761,0.00016182,92717.0,92712.0,0.04926577]
[1768801278950,0.00016182,92717.0,92712.0,0.03847577]
[1768801279150,0.00016182,92717.0,92711.0,0.03847577]
[1768801279349,0.00016182,92717.0,92712.0,0.03847577]
[1768801282060,1e-08,92717.0,92713.0,0.01079]
[1768801282261,0.09712,92725.0,92712.0,0.03847577]
[1768801282765,0.09712,92726.0,92716.0,0.17873857]
[1768801282960,0.010787,92739.0,92721.0,0.010789]
[1768801283165,0.09712,92738.0,92721.0,0.010789]
[1768801283963,0.09712,92738.0,92723.0,0.010789]
[1768801285461,0.09712,92738.0,92720.0,0.0717995]
[1768801286070,0.010788,92737.0,92720.0,0.01079]
[1768801286264,0.09712,92738.0,92715.0,0.09948527]
[1768801286265,0.21794754,92730.0,92715.0,0.09948527]
[1768801286465,0.010789,92729.0,92714.0,0.03847577]
[1768801286665,0.010789,92729.0,92713.0,0.03847577]
[1768801287370,0.010789,92729.0,92714.0,0.03847577]
[1768801288362,0.010789,92729.0,92713.0,0.03847577]
[1768801289072,0.010789,92727.0,92713.0,0.03847577]
[1768801289370,0.010789,92727.0,92714.0,0.03847577]
[1768801290568,0.010789,92721.0,92714.0,0.03847577]
[1768801290774,0.010789,92721.0,92713.0,0.03847577]
[1768801290965,0.21794754,92724.0,92713.0,0.03847577]
[1768801291274,0.010789,92725.0,92713.0,0.03847577]
[1768801291575,0.09712,92727.0,92713.0,0.03847577]
[1768801293676,0.107909,92727.0,92713.0,0.03847577]
[1768801294475,0.010789,92724.0,92713.0,0.03847577]
[1768801294878,0.09712,92727.0,92713.0,0.03847577]
[1768801295076,0.01079,92719.0,92712.0,0.03863759]
[1768801295778,0.01079,92719.0,92709.0,0.00237303]
[1768801297780,0.010789,92723.0,92709.0,0.00237303]
[1768801300877,0.010789,92721.0,92709.0,0.00237303]
[1768801301376,0.010789,92722.0,92709.0,0.03698079]
[1768801301582,0.01095082,92725.0,92709.0,0.03698079]
[1768801301781,0.010789,92723.0,92709.0,0.03698079]
[1768801301986,0.00016182,92725.0,92709.0,0.03698079]
[1768801302184,0.010789,92722.0,92709.0,0.03698079]
[1768801305470,0.010789,92721.0,92709.0,0.03698079]
[1768801305984,0.010789,92724.0,92709.0,0.03698079]
[1768801306182,0.00016182,92725.0,92709.0,0.04777179]
[1768801306383,0.00016182,92725.0,92710.0,0.03460776]
[1768801307586,0.01095082,92725.0,92710.0,0.03460776]
[1768801309288,0.00016182,92725.0,92710.0,0.03460776]
[1768801309787,0.010789,92723.0,92710.0,0.03460776]
[1768801311686,0.010789,92721.0,92710.0,0.03460776]
[1768801312387,0.09712,92724.0,92710.0,0.03460776]
[1768801313889,0.09712,92724.0,92711.0,0.01354507]
[1768801314491,0.09712,92724.0,92712.0,0.01079]
[1768801314694,0.09712,92724.0,92713.0,0.01354507]
[1768801316388,0.010789,92723.0,92713.0,0.01354507]
[1768801316895,0.09712,92724.0,92709.0,0.11319836]
[1768801318786,0.09712,92724.0,92710.0,0.01354507]
[1768801319685,0.09712,92724.0,92711.0,0.01354507]
[1768801322796,0.09712,92724.0,92713.0,0.01354507]
[1768801323288,0.010789,92723.0,92713.0,0.01354507]
[1768801324888,0.107909,92724.0,92713.0,0.01354507]
[1768801328103,0.010789,92723.0,92713.0,0.01354507]
[1768801328304,0.010789,92723.0,92709.0,0.00237303]
[1768801329803,0.010789,92723.0,92710.0,0.11082533]
[1768801330002,0.09712,92724.0,92709.0,0.00237303]
[1768801330198,0.09712,92724.0,92710.0,0.01354507]
[1768801330403,0.107909,92724.0,92710.0,0.01354507]
[1768801331210,0.010789,92722.0,92710.0,0.01354507]
[1768801331907,0.09712,92724.0,92710.0,0.01354507]
[1768801332113,0.010789,92723.0,92710.0,0.01354507]
[1768801333314,0.09712,92724.0,92710.0,0.01354507]
[1768801335214,0.107909,92724.0,92710.0,0.01354507]
[1768801338513,0.09712,92724.0,92710.0,0.02433607]
[1768801338716,0.09712,92724.0,92711.0,0.01354507]
[1768801341318,0.09712,92724.0,92712.0,0.01079]
[1768801341620,0.09712,92724.0,92716.0,0.01354507]
[1768801347424,0.09712,92724.0,92709.0,0.00237303]
[1768801347425,0.09712,92729.0,92718.0,0.00991714]
[1768801347628,0.010789,92728.0,92718.0,0.00991714]
[1768801348218,0.010789,92725.0,92718.0,0.00991714]
[1768801348419,0.010789,92725.0,92711.0,0.00016182]
[1768801349221,0.01079,92720.0,92711.0,0.00016182]
[1768801349420,0.01079,92720.0,92709.0,0.00237303]
[1768801351328,0.010789,92724.0,92709.0,0.00237303]
[1768801351528,0.00016182,92725.0,92709.0,0.00237303]
[1768801352124,0.00016182,92725.0,92709.0,3e-08]
[1768801352430,0.02227571,92724.0,92702.0,0.00991714]
[1768801352625,0.02227571,92723.0,92702.0,0.00991714]
[1768801352824,0.02227571,92722.0,92702.0,0.00991714]
[1768801353128,0.00016182,92725.0,92702.0,0.00991714]
[1768801353129,0.02227571,92721.0,92702.0,0.00991714]
[1768801353330,0.01079,92713.0,92702.0,0.00991714]
[1768801353629,0.01079,92713.0,92697.0,0.05771365]
[1768801354329,0.010791,92710.0,92697.0,0.05771365]
[1768801355325,0.010791,92707.0,92696.0,0.05771365]
[1768801355627,0.010791,92707.0,92697.0,0.00991714]
[1768801356925,0.010791,92705.0,92697.0,0.00991714]
[1768801357126,0.09712,92717.0,92689.0,0.05771365]
[1768801357316,0.010792,92700.0,92683.0,0.05771365]
[1768801357516,0.010792,92700.0,92682.0,0.06850765]
[1768801358032,0.09712,92706.0,92682.0,0.06850765]
[1768801358033,0.00016182,92699.0,92682.0,0.06850765]
[1768801358226,0.00016182,92699.0,92686.0,0.010793]
[1768801358431,0.00016182,92699.0,92689.0,0.010793]
[1768801358633,0.107911,92706.0,92686.0,0.10963795]
[1768801359029,0.107911,92706.0,92687.0,0.00954554]
[1768801359425,0.010791,92704.0,92687.0,0.00954554]
[1768801359826,0.09712,92706.0,92687.0,0.00954554]
[1768801360431,0.010792,92700.0,92687.0,0.00954554]
[1768801361234,0.010792,92698.0,92687.0,0.00954554]
[1768801361626,0.010792,92698.0,92686.0,0.00016182]
[1768801361627,0.09712,92706.0,92686.0,0.00016182]
[1768801362134,0.010793,92691.0,92686.0,8.2e-07]
[1768801362335,0.010793,92691.0,92673.0,0.15483365]
[1768801362724,0.09712,92694.0,92673.0,0.17864902]
[1768801363025,0.010793,92693.0,92673.0,0.29445733]
[1768801363326,0.010793,92693.0,92673.0,0.23674368]
[1768801363527,0.09712,92694.0,92674.0,0.00954554]
[1768801363831,0.09712,92694.0,92670.0,0.00011067]
[1768801363832,0.010794,92685.0,92670.0,0.00011067]
[1768801364521,0.010794,92685.0,92670.0,0.00965621]
[1768801364834,0.010794,92685.0,92671.0,0.00954554]
[1768801368035,0.010794,92682.0,92671.0,0.00954554]
[1768801372633,0.00016182,92686.0,92671.0,0.00954554]
[1768801372836,0.00016182,92686.0,92672.0,0.00995431]
[1768801373031,0.00016182,92686.0,92672.0,0.12446414]
[1768801373232,0.00016182,92686.0,92673.0,0.00995431]
[1768801376136,0.00016182,92686.0,92673.0,0.12446414]
[1768801376538,0.00016182,92686.0,92674.0,0.00995431]
[1768801378335,0.00016182,92686.0,92674.0,0.12446414]
[1768801378639,0.00016182,92686.0,92675.0,0.00995431]
[1768801380439,0.00016182,92686.0,92676.0,0.00995431]
[1768801382038,0.010794,92685.0,92676.0,0.00995431]
[1768801382240,0.010794,92684.0,92676.0,0.00995431]
[1768801382440,0.010794,92684.0,92670.0,0.00011067]
[1768801382641,0.010794,92682.0,92670.0,0.00011067]
[1768801383643,0.010794,92685.0,92670.0,0.00011067]
[1768801384438,0.010794,92682.0,92671.0,0.00995431]
[1768801385944,0.010794,92680.0,92671.0,0.00995431]
[1768801386246,0.00016182,92686.0,92671.0,0.00995431]
[1768801387051,0.010794,92683.0,92671.0,0.00995431]
[1768801387539,0.01095482,92686.0,92671.0,0.00995431]
[1768801387737,0.00016182,92686.0,92674.0,0.00995431]
[1768801387937,0.00016182,92686.0,92675.0,0.00995431]
[1768801388942,0.00016182,92686.0,92675.0,0.12446414]
[1768801389145,0.09716,92692.0,92684.0,0.00995431]
[1768801389348,0.21817113,92700.0,92684.0,0.00995431]
[1768801389544,0.11970228,92699.0,92685.0,0.00995431]
[1768801389846,0.02254228,92698.0,92686.0,0.00995431]
[1768801390048,0.02254228,92697.0,92686.0,0.00995431]
[1768801390244,0.21817113,92700.0,92686.0,0.00995431]
[1768801390443,0.010792,92697.0,92686.0,0.00995431]
[1768801390646,0.02254816,92696.0,92686.0,0.00995431]
[1768801390843,0.010792,92695.0,92686.0,0.00995431]
[1768801391140,0.010793,92692.0,92686.0,0.00995431]
[1768801391338,0.010793,92690.0,92672.0,0.11450983]
[1768801391542,0.010794,92685.0,92681.0,8.2e-07]
[1768801392148,0.010794,92685.0,92672.0,0.11450983]
[1768801392348,0.010794,92685.0,92670.0,0.00011067]
[1768801393250,0.010794,92685.0,92671.0,0.00995431]
[1768801393450,0.010793,92689.0,92672.0,0.00995431]
[1768801394049,0.010794,92686.0,92672.0,0.00995431]
[1768801396546,0.010793,92690.0,92673.0,0.00995431]
[1768801397559,0.010793,92690.0,92675.0,0.00995431]
[1768801397857,0.010793,92694.0,92680.0,0.00995431]
[1768801398156,0.010793,92691.0,92680.0,0.00995431]
[1768801400054,0.010793,92689.0,92680.0,0.00995431]
[1768801400253,0.010793,92691.0,92680.0,0.00995431]
[1768801402750,0.09716,92692.0,92682.0,0.00990069]
[1768801408861,0.107953,92692.0,92682.0,0.00990069]
[1768801409863,0.09716,92692.0,92682.0,0.00990069]
[1768801418167,0.31533113,92692.0,92673.0,0.010795]
[1768801418360,0.31533113,92692.0,92674.0,0.00990069]
[1768801418767,0.32612413,92692.0,92674.0,0.00990069]
[1768801419063,0.21817113,92690.0,92674.0,0.00990069]
[1768801419266,0.010793,92689.0,92674.0,0.00990069]
[1768801420269,0.21817113,92690.0,92674.0,0.00990069]
[1768801422875,0.22896413,92690.0,92674.0,0.00990069]
[1768801423477,0.09716,92689.0,92674.0,0.00990069]
[1768801424280,0.010793,92688.0,92674.0,0.00990069]
[1768801424780,0.010794,92685.0,92674.0,0.00990069]
[1768801425182,0.010793,92688.0,92674.0,0.00990069]
[1768801425382,0.09716,92689.0,92674.0,0.00990069]
[1768801427388,0.107953,92689.0,92674.0,0.00990069]
[1768801429687,0.010794,92686.0,92674.0,0.00990069]
[1768801429990,0.09716,92689.0,92674.0,0.00990069]
[1768801430787,0.21817113,92684.0,92670.0,0.00011067]
[1768801430992,0.09716,92689.0,92664.0,0.00998133]
[1768801431289,0.09716,92689.0,92668.0,0.00998133]
[1768801431491,0.010793,92686.0,92668.0,0.00998133]
[1768801431690,0.010794,92684.0,92668.0,0.00998133]
[1768801431877,8.994e-05,92683.0,92668.0,0.00998133]
[1768801433591,0.21817113,92680.0,92668.0,0.00998133]
[1768801433790,0.09716,92679.0,92668.0,0.00998133]
[1768801433990,0.107954,92679.0,92668.0,0.00998133]
[1768801436892,0.107954,92679.0,92661.0,0.05771365]
[1768801438191,0.107954,92679.0,92661.0,0.01213224]
[1768801438386,0.107954,92679.0,92660.0,0.05771365]
[1768801438893,0.09716,92679.0,92664.0,0.00949759]
[1768801439092,0.107954,92679.0,92664.0,0.00949759]
[1768801439890,0.010795,92676.0,92664.0,0.00949759]
[1768801441594,0.107954,92679.0,92664.0,0.00949759]
[1768801447899,0.010795,92676.0,92664.0,0.00949759]
[1768801451901,0.09716,92679.0,92664.0,0.00949759]
[1768801452395,0.09716,92679.0,92651.0,0.07769817]
[1768801452396,0.010796,92669.0,92656.0,0.00949759]
[1768801452988,0.009796,92669.0,92656.0,0.00949759]
[1768801453399,0.09716,92668.0,92656.0,0.00949759]
[1768801455810,0.010796,92667.0,92656.0,0.00949759]
[1768801456609,0.09716,92668.0,92656.0,0.00949759]
[1768801460009,0.010795,92675.0,92658.0,0.00949759]
[1768801460308,0.09716,92670.0,92658.0,0.00949759]
[1768801465517,0.09716,92670.0,92659.0,0.010797]
[1768801466823,0.09716,92670.0,92660.0,0.0094121]
[1768801469526,0.09716,92670.0,92662.0,0.0094121]
[1768801471332,0.08717866,92670.0,92664.0,0.0094121]
[1768801471633,0.09716,92677.0,92664.0,0.0094121]
[1768801472629,0.09716,92677.0,92664.0,0.06771931]
[1768801472830,0.09716,92677.0,92666.0,0.0094121]
[1768801475436,0.107955,92677.0,92666.0,0.0094121]
[1768801475632,0.107955,92677.0,92660.0,0.0094121]
[1768801475938,0.010795,92673.0,92656.0,0.09716]
[1768801476138,0.010795,92673.0,92656.0,0.1065721]
[1768801476333,0.010795,92673.0,92657.0,0.0202091]
[1768801476639,0.010795,92676.0,92658.0,0.0094121]
[1768801479141,0.09716,92677.0,92658.0,0.0094121]
[1768801479638,0.010795,92676.0,92658.0,0.0094121]
[1768801482037,0.010795,92673.0,92658.0,0.0094121]
[1768801482236,0.010795,92670.0,92658.0,0.0094121]
[1768801482639,0.010795,92674.0,92658.0,0.0094121]
[1768801482838,0.010795,92671.0,92658.0,0.0094121]
[1768801486339,0.010796,92665.0,92655.0,0.01241284]
[1768801486549,0.010796,92665.0,92652.0,0.00942684]
[1768801486841,0.09727067,92664.0,92641.0,0.00942684]
[1768801487146,0.010797,92659.0,92641.0,0.00942684]
[1768801487341,0.010797,92656.0,92641.0,0.00942684]
[1768801487545,0.010797,92656.0,92641.0,0.02144451]
[1768801488041,0.010797,92660.0,92641.0,0.02144451]
[1768801489941,0.010797,92657.0,92641.0,0.02144451]
[1768801492447,0.010796,92661.0,92641.0,0.02144451]
[1768801492646,0.010797,92658.0,92641.0,0.02144451]
[1768801493142,0.010797,92658.0,92645.0,0.00923535]
[1768801494145,0.09716,92663.0,92641.0,0.01201767]
[1768801495648,0.010797,92657.0,92641.0,0.01201767]
[1768801496940,0.09716,92663.0,92641.0,0.01201767]
[1768801496941,0.010796,92661.0,92641.0,0.01201767]
[1768801497140,0.010796,92661.0,92644.0,0.01161003]
[1768801497448,0.010796,92661.0,92645.0,0.00923535]
[1768801497845,0.09716,92663.0,92645.0,0.00923535]
[1768801498040,0.0972,92662.0,92645.0,0.00923535]
[1768801498245,0.0972,92662.0,92644.0,0.00237468]
[1768801498246,0.010796,92661.0,92648.0,0.00923535]
[1768801500144,0.010797,92659.0,92648.0,0.00923535]
[1768801500650,0.010797,92656.0,92648.0,0.00923535]
[1768801500848,0.010797,92656.0,92644.0,0.00237468]
[1768801501344,0.107997,92660.0,92644.0,0.00237468]
[1768801501551,0.0972,92660.0,92650.0,0.28040631]
[1768801502146,0.0972,92660.0,92650.0,0.21831592]
[1768801502851,0.0972,92660.0,92651.0,0.00923535]
[1768801505540,0.00011067,92664.0,92651.0,0.00923535]
[1768801505746,0.00016182,92668.0,92655.0,0.00923535]
[1768801505946,0.09957405,92669.0,92658.0,0.22755127]
[1768801506152,0.0972,92671.0,92659.0,0.00923535]
[1768801506851,0.107995,92671.0,92659.0,0.00923535]
[1768801507253,0.0972,92672.0,92659.0,0.00923535]
[1768801507453,0.02365101,92671.0,92659.0,0.00923535]
[1768801507755,0.0972,92672.0,92659.0,0.00923535]
[1768801508052,0.02365108,92671.0,92659.0,0.00923535]
[1768801508252,0.0972,92672.0,92659.0,0.00923535]
[1768801508454,0.0236538,92671.0,92659.0,0.00923535]
[1768801508654,0.0972,92672.0,92659.0,0.00923535]
[1768801508844,0.02365382,92671.0,92659.0,0.00923535]
[1768801509046,0.010795,92671.0,92659.0,0.00923535]
[1768801510155,0.02366108,92670.0,92659.0,0.00923535]
[1768801510351,0.010795,92671.0,92659.0,0.00923535]
[1768801510550,0.02366109,92670.0,92659.0,0.00923535]
[1768801510751,0.010795,92671.0,92659.0,0.00923535]
[1768801510953,0.010795,92669.0,92659.0,0.00923535]
[1768801511153,0.21831592,92670.0,92651.0,0.00923535]
[1768801511460,0.010796,92662.0,92651.0,0.00923535]
[1768801511841,0.010797,92657.0,92646.0,0.00016182]
[1768801514358,0.010796,92661.0,92646.0,0.00016182]
[1768801515057,0.010796,92661.0,92646.0,0.00939717]
[1768801515459,0.010796,92664.0,92646.0,0.00939717]
[1768801515659,0.010796,92664.0,92649.0,0.00237457]
[1768801516159,0.010796,92664.0,92649.0,0.01160992]
[1768801516360,0.010796,92667.0,92650.0,0.21831592]
[1768801516558,0.12089526,92666.0,92651.0,0.00923535]
[1768801516761,0.02369526,92665.0,92651.0,0.00923535]
[1768801517460,0.02369526,92665.0,92650.0,0.28040631]
[1768801517461,0.02369526,92665.0,92654.0,0.00923535]
[1768801519356,0.010796,92662.0,92649.0,0.00237457]
[1768801519561,0.010797,92659.0,92649.0,0.00237457]
[1768801520356,0.010796,92663.0,92649.0,0.00237457]
[1768801524268,0.107996,92666.0,92649.0,0.01237397]
[1768801524563,0.0236974,92665.0,92649.0,0.01237397]
[1768801524763,0.0236974,92664.0,92650.0,0.21831592]
[1768801524966,0.107996,92666.0,92651.0,0.0099994]
[1768801525263,0.02369741,92665.0,92651.0,0.0099994]
[1768801525464,0.02369741,92664.0,92651.0,0.0099994]
[1768801525652,0.107996,92666.0,92651.0,0.0099994]
[1768801525851,0.02369821,92665.0,92651.0,0.0099994]
[1768801526052,0.02369821,92664.0,92651.0,0.0099994]
[1768801526268,0.010796,92666.0,92651.0,0.0099994]
[1768801526461,0.02369905,92665.0,92651.0,0.0099994]
[1768801526662,0.02369905,92664.0,92651.0,0.0099994]
[1768801526863,0.010796,92666.0,92651.0,0.0099994]
[1768801527067,0.02369908,92665.0,92651.0,0.0099994]
[1768801527267,0.02369908,92664.0,92651.0,0.0099994]
[1768801527567,0.010796,92666.0,92651.0,0.0099994]
[1768801527766,0.02370007,92665.0,92651.0,0.0099994]
[1768801527966,0.02370007,92664.0,92651.0,0.0099994]
[1768801528170,0.010796,92666.0,92651.0,0.0099994]
[1768801528367,0.02370047,92665.0,92651.0,0.0099994]
[1768801528568,0.02370047,92664.0,92651.0,0.0099994]
[1768801528768,0.010796,92666.0,92651.0,0.0099994]
[1768801528968,0.010796,92664.0,92651.0,0.0099994]
[1768801531263,0.010796,92662.0,92651.0,0.0099994]
[1768801532774,0.010796,92665.0,92651.0,0.0099994]
[1768801532972,0.02349875,92664.0,92651.0,0.0099994]
[1768801533271,0.010796,92665.0,92651.0,0.0099994]
[1768801533472,0.02349828,92664.0,92651.0,0.0099994]
[1768801533672,0.010796,92665.0,92651.0,0.0099994]
[1768801533872,0.02349814,92664.0,92651.0,0.0099994]
[1768801534076,0.010796,92665.0,92651.0,0.0099994]
[1768801534374,0.02349816,92664.0,92651.0,0.0099994]
[1768801534574,0.010796,92665.0,92651.0,0.0099994]
[1768801534776,0.02349838,92664.0,92651.0,0.0099994]
[1768801534975,0.107996,92668.0,92651.0,0.0099994]
[1768801535177,0.02349819,92667.0,92651.0,0.0099994]
[1768801535477,0.02349819,92666.0,92651.0,0.0099994]
[1768801535668,0.02349819,92665.0,92651.0,0.0099994]
[1768801535869,0.02349819,92664.0,92651.0,0.0099994]
[1768801536069,0.107996,92668.0,92651.0,0.0099994]
[1768801536267,0.010796,92666.0,92651.0,0.0099994]
[1768801536468,0.02349559,92665.0,92651.0,0.0099994]
[1768801536769,0.02349559,92664.0,92651.0,0.0099994]
[1768801537076,0.010796,92666.0,92651.0,0.0099994]
[1768801537279,0.0972,92668.0,92651.0,0.0099994]
[1768801537280,0.010796,92662.0,92651.0,0.0099994]
[1768801540676,0.0972,92668.0,92651.0,0.0099994]
[1768801540875,0.02348906,92667.0,92651.0,0.0099994]
[1768801541176,0.02348906,92666.0,92649.0,0.00237457]
[1768801541364,0.02348906,92665.0,92649.0,0.00237457]
[1768801541565,0.02348906,92664.0,92649.0,0.00237457]
[1768801541760,0.0972,92668.0,92649.0,0.00237457]
[1768801541761,0.02348906,92663.0,92649.0,0.00237457]
[1768801541974,0.0972,92668.0,92649.0,0.00237457]
[1768801542176,0.010797,92658.0,92649.0,0.00237457]
[1768801543271,0.010797,92656.0,92649.0,0.00237457]
[1768801544976,0.010797,92659.0,92649.0,0.00237457]
[1768801545176,0.010796,92662.0,92649.0,0.00237457]
[1768801546476,0.010796,92662.0,92649.0,0.01227234]
[1768801549181,0.010796,92665.0,92649.0,0.01227234]
[1768801549384,0.02348968,92664.0,92649.0,0.01227234]
[1768801549579,0.02348968,92663.0,92649.0,0.01227234]
[1768801549785,0.107996,92668.0,92652.0,0.00989777]
[1768801549985,0.02348976,92667.0,92652.0,0.00989777]
[1768801550285,0.02348976,92666.0,92652.0,0.00989777]
[1768801550485,0.02348976,92665.0,92652.0,0.00989777]
[1768801550786,0.02348976,92664.0,92652.0,0.00989777]
[1768801550986,0.02348976,92663.0,92652.0,0.00989777]
[1768801551172,0.107996,92668.0,92652.0,0.00989777]
[1768801551485,0.010796,92666.0,92652.0,0.00989777]
[1768801551784,0.02348976,92665.0,92652.0,0.00989777]
[1768801551987,0.02348976,92664.0,92652.0,0.00989777]
[1768801552181,0.02348976,92663.0,92652.0,0.00989777]
[1768801552382,0.010796,92666.0,92652.0,0.00989777]
[1768801552583,0.02349054,92665.0,92652.0,0.00989777]
[1768801552883,0.02349054,92664.0,92653.0,0.00947888]
[1768801553086,0.02349054,92663.0,92653.0,0.00947888]
[1768801553287,0.010796,92666.0,92653.0,0.00947888]
[1768801553489,0.02349047,92665.0,92653.0,0.00947888]
[1768801553675,0.02349047,92664.0,92653.0,0.00947888]
[1768801553881,0.02349047,92663.0,92653.0,0.00947888]
[1768801554185,0.010796,92666.0,92653.0,0.00947888]
[1768801554386,0.02349058,92665.0,92653.0,0.00947888]
[1768801554586,0.02349058,92664.0,92653.0,0.00947888]
[1768801554788,0.02349058,92663.0,92653.0,0.00947888]
[1768801554989,0.010796,92666.0,92653.0,0.00947888]
[1768801555190,0.02349057,92665.0,92653.0,0.00947888]
[1768801555388,0.02349057,92664.0,92653.0,0.00947888]
[1768801555588,0.02349057,92663.0,92653.0,0.00947888]
[1768801555890,0.010796,92666.0,92653.0,0.00947888]
[1768801556090,0.02349063,92665.0,92653.0,0.00947888]
[1768801556290,0.02349063,92664.0,92653.0,0.00947888]
[1768801556489,0.02349063,92663.0,92653.0,0.00947888]
[1768801556784,0.0972,92668.0,92653.0,0.00947888]
[1768801556990,0.02349052,92667.0,92654.0,0.00947888]
[1768801557187,0.02349052,92666.0,92654.0,0.00947888]
[1768801557488,0.02349052,92665.0,92654.0,0.00947888]
[1768801557691,0.02349052,92664.0,92654.0,0.00947888]
[1768801557989,0.0972,92668.0,92654.0,0.00947888]
[1768801558189,0.02348763,92667.0,92654.0,0.00947888]
[1768801558384,0.02348763,92666.0,92654.0,0.00947888]
[1768801558587,0.02348763,92665.0,92654.0,0.00947888]
[1768801558885,0.02348763,92664.0,92654.0,0.00947888]
[1768801559086,0.0972,92668.0,92654.0,0.00947888]
[1768801559280,0.02348471,92667.0,92654.0,0.00947888]
[1768801559484,0.02348471,92666.0,92654.0,0.00947888]
[1768801559685,0.02348471,92665.0,92654.0,0.00947888]
[1768801559888,0.0972,92668.0,92655.0,0.00947888]
[1768801560082,0.02341319,92667.0,92655.0,0.00947888]
[1768801560283,0.02341319,92666.0,92655.0,0.00947888]
[1768801560584,0.0972,92668.0,92655.0,0.00947888]
[1768801560790,0.02341272,92667.0,92659.0,0.00947888]
[1768801560993,0.0972,92668.0,92659.0,0.00947888]
[1768801561291,0.0972,92675.0,92667.0,0.00947888]
[1768801561486,0.010794,92678.0,92667.0,0.00947888]
[1768801561886,0.0972,92680.0,92667.0,0.00947888]
[1768801562092,0.010794,92679.0,92667.0,0.00947888]
[1768801562283,0.010795,92676.0,92663.0,0.00016182]
[1768801562689,0.010795,92676.0,92664.0,0.00947888]
[1768801562888,0.010794,92679.0,92664.0,0.00947888]
[1768801563388,0.0972,92680.0,92664.0,0.00947888]
[1768801563586,0.010795,92676.0,92664.0,0.00947888]
[1768801563985,0.010795,92673.0,92664.0,0.00947888]
[1768801564185,0.010795,92673.0,92663.0,0.00016182]
[1768801569290,0.010796,92668.0,92650.0,0.00947888]
[1768801569485,0.010796,92668.0,92652.0,0.00947888]
[1768801570086,0.010795,92672.0,92652.0,0.00947888]
[1768801571798,0.010795,92672.0,92654.0,0.00947888]
[1768801574898,0.00016182,92677.0,92654.0,0.00947888]
[1768801575093,0.010795,92675.0,92656.0,0.00947888]
[1768801575602,0.010795,92675.0,92659.0,0.05049075]
[1768801575796,0.010795,92675.0,92660.0,0.00947888]
[1768801581201,0.01095682,92677.0,92661.0,0.00947888]
[1768801581399,0.09716,92676.0,92665.0,0.00947888]
[1768801585204,0.010795,92675.0,92665.0,0.00947888]
[1768801586003,0.09716,92676.0,92665.0,0.00947888]
[1768801586700,0.09716,92676.0,92668.0,0.00967368]
[1768801587405,0.00016182,92677.0,92668.0,0.00967368]
[1768801589703,0.00016182,92677.0,92668.0,0.05436196]
[1768801590008,0.00016182,92677.0,92670.0,0.04468828]
[1768801590310,0.00016182,92677.0,92671.0,0.00967368]
[1768801590700,0.09716,92682.0,92671.0,0.05436196]
[1768801590901,0.02313788,92681.0,92672.0,0.00967368]
[1768801591208,0.02313788,92680.0,92672.0,0.00967368]
[1768801591402,0.09716,92682.0,92672.0,0.00967368]
[1768801591604,0.02313643,92681.0,92672.0,0.00967368]
[1768801591804,0.02313641,92680.0,92672.0,0.00967368]
[1768801592003,0.09716,92682.0,92672.0,0.00967368]
[1768801592204,0.02313639,92681.0,92672.0,0.00967368]
[1768801592504,0.09716,92682.0,92672.0,0.00967368]
[1768801592704,0.02313529,92681.0,92672.0,0.00967368]
[1768801592905,0.09716,92682.0,92672.0,0.00967368]
[1768801593208,0.0231353,92681.0,92672.0,0.00967368]
[1768801593404,0.09716,92682.0,92672.0,0.00967368]
[1768801593606,0.02313427,92681.0,92672.0,0.00967368]
[1768801593904,0.09716,92682.0,92672.0,0.00967368]
[1768801594104,0.02313422,92681.0,92672.0,0.00967368]
[1768801594409,0.09716,92682.0,92672.0,0.00967368]
[1768801594708,0.02313332,92681.0,92672.0,0.00967368]
[1768801594901,0.09716,92682.0,92672.0,0.00967368]
[1768801595200,0.02313329,92681.0,92672.0,0.00967368]
[1768801595502,0.09716,92682.0,92672.0,0.00967368]
[1768801595702,0.02313243,92681.0,92672.0,0.00967368]
[1768801595909,0.09716,92682.0,92672.0,0.00967368]
[1768801596209,0.02313248,92681.0,92672.0,0.00967368]
[1768801596410,0.010794,92685.0,92672.0,0.00967368]
[1768801596611,0.02313158,92684.0,92672.0,0.00967368]
[1768801596804,0.02313158,92683.0,92672.0,0.00967368]
[1768801597110,0.02313158,92682.0,92672.0,0.00967368]
[1768801597314,0.02313158,92681.0,92672.0,0.00967368]
[1768801597506,0.010794,92685.0,92673.0,0.00967368]
[1768801597810,0.02313081,92684.0,92673.0,0.00967368]
[1768801598012,0.02313081,92683.0,92673.0,0.00967368]
[1768801598203,0.02313081,92682.0,92673.0,0.00967368]
[1768801598403,0.02313081,92681.0,92673.0,0.00967368]
[1768801598605,0.010794,92685.0,92673.0,0.00967368]
[1768801598909,0.02313008,92684.0,92677.0,0.00969266]
[1768801599112,0.09716,92688.0,92679.0,0.00969266]
[1768801599408,1.33688,92704.0,92680.0,0.00969266]
[1768801599409,0.107952,92696.0,92680.0,0.00969266]
[1768801599609,0.02312654,92695.0,92681.0,0.00969266]
[1768801599808,0.02312654,92694.0,92681.0,0.00969266]
[1768801600009,0.02312654,92693.0,92681.0,0.00969266]
[1768801600309,0.02312654,92692.0,92681.0,0.00969266]
[1768801600510,0.02312654,92691.0,92681.0,0.00969266]
[1768801600706,0.010793,92694.0,92681.0,0.00969266]
[1768801600907,0.02312171,92693.0,92681.0,0.00969266]
[1768801601107,0.02312171,92692.0,92681.0,0.00969266]
[1768801601308,0.010793,92694.0,92681.0,0.00969266]
[1768801601611,0.02311806,92693.0,92683.0,0.00969266]
[1768801601910,0.09716,92699.0,92685.0,0.05256182]